{"text_format":"1","workbook":"xlsx","n_sheets":1,"sheets":["Expiry date"],"not_rendered":{"charts":0,"images":0,"macros":1,"external_links":0,"defined_names":0,"comments":0,"pivot_tables":0},"unopened":[],"bounds":{"document_bytes":16777216,"sheet_cells":100000,"rows_first":2000,"rows_last":500,"rows_between":2000,"halvings":0,"cell_chars":16384,"cell_head_chars":4096},"cells_cut":0,"cells_raw":0,"read":"whole","date_system":"1900"}

{"sheet":"Expiry date","index":0,"n_rows":18,"n_cols":5,"rows_kept":18,"cut":false,"hidden":false,"merged":[]}
["كود المنتج","اسم المنتج","تاريخ انتهاء الصلاحية","انتهاء الصلاحية باليوم","البيان"]
["26685","E30D","2024-01-01",{"$f":"C2-TODAY()","v":-191},{"$f":"IF(C2=\"\",\"\",(IFERROR(IFERROR(\" validity expires yet \"&DATEDIF(TODAY(),C2,\"y\")&\" year, \"&DATEDIF(TODAY(),C2,\"ym\")&\" month  And  \"&DATEDIF(TODAY(),C2,\"md\")&\" days \",\"Expired\"&DATEDIF(C2,TODAY(),\"y\")&\" year, \"&DATEDIF(C2,TODAY(),\"ym\")&\" month  And  \"&DATEDIF(C2,TODAY(),\"md\")&\" days \"),\"\")))","v":"Expired0 year, 6 month  And  9 days "}]
["26685","D18A","2024-02-02",{"$f":"C3-TODAY()","v":-159},{"$f":"IF(C3=\"\",\"\",(IFERROR(IFERROR(\" validity expires yet \"&DATEDIF(TODAY(),C3,\"y\")&\" year, \"&DATEDIF(TODAY(),C3,\"ym\")&\" month  And  \"&DATEDIF(TODAY(),C3,\"md\")&\" days \",\"Expired\"&DATEDIF(C3,TODAY(),\"y\")&\" year, \"&DATEDIF(C3,TODAY(),\"ym\")&\" month  And  \"&DATEDIF(C3,TODAY(),\"md\")&\" days \"),\"\")))","v":"Expired0 year, 5 month  And  8 days "}]
["26718","C19B","2024-03-03",-129,"Expired0 year, 4 month  And  7 days "]
["26718","C19C","2024-04-04",-97,"Expired0 year, 3 month  And  6 days "]
["26718","C20C","2024-05-05",-66,"Expired0 year, 2 month  And  5 days "]
["26718","C21A","2024-06-06",-34,"Expired0 year, 1 month  And  4 days "]
["26718","C21B","2024-07-07",-3,"Expired0 year, 0 month  And  3 days "]
["26913","B03A","2024-07-08",-2,"Expired0 year, 0 month  And  2 days "]
["26723","F15E","2024-07-09",-1,"Expired0 year, 0 month  And  1 days "]
["26723","F16E","2024-07-10",0," validity expires yet 0 year, 0 month  And  0 days "]
["26723","F17E","2024-07-11",1," validity expires yet 0 year, 0 month  And  1 days "]
["26723","F18E","2024-07-12",2," validity expires yet 0 year, 0 month  And  2 days "]
["26786","F22B","2024-07-13",3," validity expires yet 0 year, 0 month  And  3 days "]
["26786","F23A","2024-07-14",4," validity expires yet 0 year, 0 month  And  4 days "]
["26687","G09D","2024-07-15",5," validity expires yet 0 year, 0 month  And  5 days "]
["26718","C20A","2024-07-16",6," validity expires yet 0 year, 0 month  And  6 days "]
["26718","C20B","2024-07-17",7," validity expires yet 0 year, 0 month  And  7 days "]